Cogmind - Beta 16 --- EXPLORER MODE // 2026.01.23 @ 11:39:09 Player: K.K.Y. Result: Destroyed by Piercing Trap Performance ------------- Evolutions (0) 0 Regions Visited (3) 600 Robots Destroyed (37) 185 Value Destroyed (993) 993 Prototype IDs (0) 0 Alien Tech Used (0) 0 Bonus (67) 67 TOTAL SCORE: 1845 Bonus ------- Follower Combat Kills 67 Cogmind --------- Core Integrity 0/250 Matter 300/300 Energy 261/265 System Corruption 0% Temperature Cool (2) Movement Treading (250) Ox1 Location -10/Subcaves Parts ------- > --- POWER (1) -------- Improved Ion Engine > --- PROPULSION (2) --- Light Treads Spiked Treads > --- UTILITY (3) ------ Large Storage Unit Structural Scanner Sensor Array > --- WEAPON (2) ------- Battle Cannon Bore Cannon > --- INVENTORY (15) --- Ion Engine Improved Heat Sink High-capacity Storage Unit Machine Analyzer Improved Terrain Scanner Light Armor Plating Light Armor Plating Light Armor Plating Rainbow Chip Beam Cannon Beam Cannon Beam Cannon Beam Cannon Beam Cannon Multitool Peak State ------------ > --- POWER ------------ Improved Ion Engine > --- PROPULSION ------- Light Treads Spiked Treads > --- UTILITY ---------- Large Storage Unit Structural Scanner Sensor Array > --- WEAPON ----------- Battle Cannon Bore Cannon > --- INVENTORY -------- Ion Engine Light Treads High-capacity Storage Unit Machine Analyzer Improved Terrain Scanner Light Armor Plating Light Armor Plating Light Armor Plating Rainbow Chip Beam Cannon Beam Cannon Beam Cannon Beam Cannon Beam Cannon Multitool [Rating: 18] Favorites ----------- Power Ion Engine Engine Ion Engine Propulsion Light Treads Treads Light Treads Utility Structural Scanner Device Structural Scanner Storage Large Storage Unit Weapon Beam Cannon Energy Cannon Beam Cannon Ballistic Gun Light Assault Rifle Ballistic Cannon Bore Cannon Special Weapon Mining Laser Build | -11 -10 -10 -10 ------- Run | Yrd Mat Min Sub Slots Evolved 1 | . 1 . . Power . | . . . . Propulsion . | . . . . Utility 1 | . 1 . . Weapon . | . . . . Parts Attached 23 | 7 6 . 10 Power 3 | 1 . . 2 Engine 3 | 1 . . 2 Core . | . . . . Reactor . | . . . . Propulsion 6 | 2 2 . 2 Treads 6 | 2 2 . 2 Leg . | . . . . Wheel . | . . . . Hover . | . . . . Flight . | . . . . Utility 5 | 2 2 . 1 Device 3 | 1 1 . 1 Storage 2 | 1 1 . . Processor . | . . . . Hackware . | . . . . Protection . | . . . . Artifact . | . . . . Weapon 9 | 2 2 . 5 Energy Gun . | . . . . Energy Cannon 4 | . 2 . 2 Ballistic Gun 2 | 2 . . . Ballistic Cannon 2 | . . . 2 Launcher . | . . . . Special Weapon 1 | . . . 1 Impact Weapon . | . . . . Slashing Weapon . | . . . . Piercing Weapon . | . . . . Special Melee Weapon . | . . . . Unidentified Prototypes . | . . . . Parts Lost 5 | . . . 5 Power 1 | . . . 1 Propulsion 1 | . . . 1 Utility 1 | . . . 1 Weapon 2 | . . . 2 Highest Loss Streak 2 | . . . 2 To Critical Strikes . | . . . . Average Backups 12 | 1 7 12 13 Power . | . . 1 . Propulsion . | . . . . Utility 5 | . 3 4 6 Weapon 5 | . 3 7 5 Tool/Special . | . . . . Unused Backups 15 | . 1 . 14 Power 1 | . . . 1 Propulsion . | . . . . Utility 9 | . 1 . 8 Weapon 4 | . . . 4 Tool/Special 1 | . . . 1 Average Slot Usage (%) 97 | . 93 100 99 Engine 11 | . 12 12 11 Treads 24 | . 25 25 24 Device 23 | . 18 25 24 Storage 12 | . 12 12 12 Energy Cannon 8 | . 10 25 3 Ballistic Gun 3 | . 14 . . Ballistic Cannon 12 | . . . 20 Peak Build Rating 18 | 7 9 9 18 Average Rating 12 | 5 8 9 15 On Entrance 6 | . 7 9 9 Avg Prop Armor Cover (%) . | . . . . Naked Turns . | . . . . Heaviest Build 41 | 19 33 33 41 Greatest Support 40 | 40 40 40 40 Greatest Overweight (x) 1 | . . . 1 Average Overweight (x) . | . . . . Largest Inventory Capacity 15 | 10 15 15 15 Average Capacity 14 | 8 13 15 15 Most Carried 15 | 5 13 13 15 Average Carried 12 | 1 7 12 13 Final Capacity 15 | 10 15 15 15 Final Carried 15 | 2 12 13 15 Class Distribution -------------------- 100% | Hacker-Mutant Dominant Class ---------------- Hacker-Mutant | -10/Materials Hacker-Mutant | -10/Mines Hacker-Mutant | -10/Subcaves Resources | -11 -10 -10 -10 ----------- Run | Yrd Mat Min Sub Matter Collected 1176 | 287 215 20 654 Remotely . | . . . . Salvage Created 1229 | 126 506 13 584 Parts 86 | 5 36 2 43 Haulers Intercepted 2 | . 2 . . Recyclers Shooed 1 | . 1 . . Parts Field Recycled . | . . . . Retrieved Matter . | . . . . Parts Self-Destructed . | . . . . Prevented . | . . . . Parts Restored . | . . . . Kills | -11 -10 -10 -10 ------- Run | Yrd Mat Min Sub Combat Hostiles Destroyed 28 | . 10 1 17 Guns 10 | . 10 . . Cannons 17 | . . 1 16 Classes Destroyed 10 | 2 5 . 3 Builder 1 | . 1 . . Tunneler 2 | 2 . . . Hauler 2 | . 2 . . Recycler 1 | 1 . . . Watcher 3 | . 3 . . Swarmer 6 | . 3 1 2 Grunt 7 | . 7 . . Sentry 1 | . . . 1 Artisan 1 | . . . 1 Subdweller 14 | . . . 14 Best Kill Streak 9 | 2 9 1 5 Combat Bots Only 8 | . 8 1 5 Max Kills in Single Turn 1 | 1 1 1 1 Gunslinging . | . . . . Exploded . | . . . . Melee . | . . . . Uniques/NPCs Destroyed . | . . . . Combat | -11 -10 -10 -10 -------- Run | Yrd Mat Min Sub Hostile Shots Fired 127 | . 37 11 79 Missed 36 | . 10 4 22 Hits 91 | . 27 7 57 Projectile 91 | . 27 7 57 AOE 11 | . . . 11 Critical Strikes 3 | . 1 . 2 Damage Taken 1232 | . 191 36 1005 Core 257 | . 75 10 172 Absorbed by Shields . | . . . . Ignored by Resistances 726 | . 124 24 578 Core Remaining (%) 100 | 100 . . . Volleys Fired 142 | 7 41 3 91 Largest 2 | 2 2 2 2 Hottest 160 | 40 40 120 160 Shots Fired 277 | 14 82 6 175 Gun 96 | 14 82 . . Cannon 167 | . . 6 161 Launcher . | . . . . Special 14 | . . . 14 Kinetic 187 | 14 82 . 91 Thermal 90 | . . 6 84 Explosive . | . . . . Electromagnetic . | . . . . Robot Hit Streak 45 | 5 37 4 45 Robot Miss Streak 1 | 1 1 1 1 Penetration Max 1 | . . . 1 Secondary Targets 2 | . 2 . . Max Gunslinging Chain 1 | . 1 . . Shots Hit Robots 173 | 10 67 4 92 Core Hits 60 | 5 27 1 27 Critical Kills 5 | . . . 5 Critical Parts Destroyed 2 | . 2 . . Critical Strikes 13 | . 2 . 11 Meltdown 1 | . . . 1 Destroy 12 | . 2 . 10 Melee Attacks . | . . . . Impact . | . . . . Slashing . | . . . . Piercing . | . . . . Sneak Attacks . | . . . . Combat Hostiles . | . . . . Follow-up Attacks . | . . . . Damage Inflicted 2426 | 102 712 74 1538 Guns 814 | 102 712 . . Cannons 1559 | . . 69 1490 Explosions . | . . . . Melee . | . . . . Ramming 5 | . . 5 . Kinetic 1624 | 102 712 . 810 Thermal 797 | . . 69 728 Explosive . | . . . . Electromagnetic . | . . . . Impact . | . . . . Slashing . | . . . . Piercing . | . . . . Highest Corruption . | . . . . Average Corruption . | . . . . Corruption Purged . | . . . . Corruption Blocked . | . . . . Overload Shots . | . . . . Overflow Damage . | . . . . Projectiles . | . . . . Explosions . | . . . . Melee . | . . . . Knockbacks 4 | . . . 4 Impact . | . . . . Kinetic 4 | . . . 4 Secondary . | . . . . Self-Inflicted Damage . | . . . . Shots . | . . . . Rammed 1 | . . 1 . Targets Rammed 1 | . . 1 . Kicked . | . . . . Crushed . | . . . . Highest Temperature 124 | . 12 124 18 Average Temperature 21 | . 7 60 7 Received Heat Transfer 327 | . 93 . 234 Siege Activations . | . . . . Martial Activations . | . . . . Shielding Activations . | . . . . Robots Disrupted . | . . . . Combat Hostiles . | . . . . Robots Corrupted . | . . . . Combat Hostiles . | . . . . Parts Fried . | . . . . Impact Corruptions . | . . . . Robots Melted 1 | . . . 1 Combat Hostiles 1 | . . . 1 Parts Melted 2 | . . . 2 Heat Transferred 1691 | . . 148 1543 Parts Sabotaged . | . . . . Parts Stolen . | . . . . Parts Stripped . | . . . . Power Chain Reactions . | . . . . Alert | -11 -10 -10 -10 ------- Run | Yrd Mat Min Sub Maximum Alert Level 1 | . 1 . . Low Security (%) 95 | 100 92 100 . Level 1 4 | . 7 . . Level 2 . | . . . . Level 3 . | . . . . Level 4 . | . . . . Level 5 . | . . . . High Security . | . . . . Max Security . | . . . . Peak Influence 227 | 5 227 51 . Initial . | . . . . Average 35 | 1 64 1 . Influence Increases 560 | 15 421 54 70 Destroy 0b10 Robot/C 300 | . 200 40 60 Destroy 0b10 Robot/NC 45 | 15 30 . . Destroy Leader 70 | . 50 10 10 Allied During Kill 1 | . . 1 . Successful Hack 54 | . 51 3 . Lose Combat Pursuer 90 | . 90 . . Influence Decreases 560 | 15 421 33 91 Entered New Map 14 | . . . 14 Time Decay 541 | 15 421 33 72 Lost Part 5 | . . . 5 Squads Dispatched 2 | . 2 . . Investigation 2 | . 2 . . Extermination . | . . . . Reinforcement . | . . . . Assault . | . . . . Garrison . | . . . . Intercept . | . . . . Searches Triggered . | . . . . Construction Impeded . | . . . . Haulers Reinforced . | . . . . Active Scanning Responses . | . . . . Cargo Convoy Interrupts . | . . . . Stealth | -11 -10 -10 -10 --------- Run | Yrd Mat Min Sub Distress Signals 2 | . 2 . . Communications Jammed . | . . . . Distress Signals . | . . . . Times Spotted 42 | . 19 2 21 Peak Tracking Total 8 | . 8 2 4 Tactical Retreats 3 | . 3 . . Traps | -11 -10 -10 -10 ------- Run | Yrd Mat Min Sub Traps Triggered 2 | . 1 . 1 Indirectly . | . . . . Trap Hack Attempts . | . . . . Triggered . | . . . . Disarmed 12 | . 12 . . Reprogrammed . | . . . . Reused . | . . . . Traps Extracted . | . . . . Installed . | . . . . Triggered . | . . . . Machines | -11 -10 -10 -10 ---------- Run | Yrd Mat Min Sub Machines Disabled . | . . . . Max in Single Turn . | . . . . Machines Repaired . | . . . . Machines Dismantled . | . . . . Machines Sabotaged . | . . . . Overloaded Fab Kills . | . . . . Hacking | -11 -10 -10 -10 --------- Run | Yrd Mat Min Sub Machines Accessed 11 | . 9 1 1 Terminals 8 | . 7 1 . Fabricators . | . . . . Repair Stations . | . . . . Recycling Units 2 | . 2 . . Scanalyzers . | . . . . Garrison Access . | . . . . Total Hacks 33 | . 28 1 4 Successful 22 | . 17 1 4 Failed 11 | . 11 . . Catastrophic 3 | . 3 . . Database Lockouts . | . . . . Manual 17 | . 17 . . Terminals 26 | . 25 1 . Fabricators . | . . . . Repair Stations . | . . . . Recycling Units 3 | . 3 . . Scanalyzers . | . . . . Garrison Access . | . . . . Terminal Hacks 19 | . 14 1 4 Record 4 | . . . 4 Part Schematic 8 | . 8 . . Robot Analysis 2 | . 2 . . Locate Traps 1 | . 1 . . Disarm Traps 3 | . 3 . . Zone Layout 1 | . . 1 . Fabricator Hacks . | . . . . Repair Station Hacks . | . . . . Recycling Unit Hacks 3 | . 3 . . Retrieve Matter 1 | . 1 . . Retrieve Components 2 | . 2 . . Scanalyzer . | . . . . Garrison Access Hacks . | . . . . Unauthorized Hacks . | . . . . Terminals . | . . . . Fabricators . | . . . . Repair Stations . | . . . . Recycling Units . | . . . . Scanalyzers . | . . . . Garrison Access . | . . . . Data Cores Recovered . | . . . . Used . | . . . . Hacking Detections 6 | . 6 . . Full Trace Events 3 | . 3 . . Feedback Events . | . . . . Feedback Blocked . | . . . . Robot Schematics Acquired . | . . . . Robots Built . | . . . . Authchips . | . . . . Time . | . . . . Total Robot Build Rating . | . . . . Part Schematics Acquired 6 | . 6 . . Parts Built . | . . . . Authchips . | . . . . Time . | . . . . Total Part Build Rating . | . . . . Part Studies Acquired . | . . . . Parts Repaired . | . . . . Time . | . . . . Parts Recycled . | . . . . Recycled Matter . | . . . . Retrieved Matter . | . . . . Retrieved Components 10 | . 10 . . Parts Scanalyzed . | . . . . Part Schematics Acquired . | . . . . Parts Damaged . | . . . . Bothacking | -11 -10 -10 -10 ------------ Run | Yrd Mat Min Sub Used RIF Installer . | . . . . Robots Hacked . | . . . . Non-combat . | . . . . Combat . | . . . . Robot Hacks Applied . | . . . . Relay Couplers Released . | . . . . Fabnet Peak Effective % . | . . . . Robots Rewired . | . . . . Allies Hacked . | . . . . Hacks Repelled . | . . . . Allies | -11 -10 -10 -10 -------- Run | Yrd Mat Min Sub Total Allies 2 | . . 2 . Largest Group 2 | . . 2 2 Highest-Rated Group 39 | . . 39 39 Highest-Rated Ally 31 | . . 31 31 Total Orders . | . . . . Ally Attacks 10 | . . 2 8 Total Damage 150 | . . 22 128 Kills 3 | . . 1 2 Allies Corrupted . | . . . . Allies Melted . | . . . . Intel | -11 -10 -10 -10 ------- Run | Yrd Mat Min Sub Active Infowar (turns) 5102 | 61 1086 844 3111 Sensors 4356 | . 575 844 2937 Structural 5102 | 61 1086 844 3111 Robot Analysis Total 2 | . 2 . . Derelict Logs Recovered 2 | . . . 2 Drone Launches . | . . . . Drone Recoveries . | . . . . Exploration | -11 -10 -10 -10 ------------- Run | Yrd Mat Min Sub Turns Passed 5124 | 83 1086 844 3111 Spaces Moved 2216 | 44 590 519 1063 Core 19 | 19 . . . Treads 2197 | 25 590 519 1063 Legs . | . . . . Wheels . | . . . . Hover . | . . . . Flight . | . . . . Fastest Speed 50 | 50 160 160 160 Average Speed 190 | 112 160 160 224 Slowest Speed 250 | 160 160 160 250 Overloaded Moves . | . . . . Propulsion Burnouts . | . . . . Robots Hopped . | . . . . Potential Cave-ins . | . . . . Cave-ins Triggered . | . . . . Exploration Rate (%) 69 | 4 95 99 79 Regions Visited 3 Branch Regions 2 Pre-discovered Areas 1 | . . . 1 Known Exits Taken 3 | 1 1 1 . Unknown Exits Taken . | . . . . Scrap Searched 4 | . . 1 3 Spaces Dug 3 | . . . 3 Terrain Destroyed 13 | . . . 13 Melee . | . . . . Projectile 13 | . . . 13 AOE . | . . . . Terrain Rammed . | . . . . Walls Destroyed . | . . . . Machines Disabled . | . . . . Actions | -11 -10 -10 -10 --------- Run | Yrd Mat Min Sub Total 2837 | 64 662 526 1585 Wait 409 | . . 3 406 Move 2213 | 43 589 518 1063 Hop . | . . . . Pick Up 36 | 7 17 1 11 Fast Attach 2 | 2 . . . Attach 14 | 5 4 . 5 Detach 3 | . 3 . . Swap 7 | . 2 . 5 Drop 10 | . 6 . 4 Fire 142 | 7 41 3 91 Melee . | . . . . Ram . | . . . . Kick . | . . . . Crush 1 | . . 1 . Escape Stasis . | . . . . Rewire . | . . . . Trap . | . . . . Miscellaneous . | . . . . Route ------- -11/Scrapyard -10/Materials (discovered 4 exits: *Mat x2 / *Min x2) -10/Mines (discovered 3 exits: *Mat x2 / *Sub) -10/Subcaves (discovered 2 exits: *Mat x2) History --------- Turn | Location | Event 14 | -11/Scrapyard | Identified exit to Materials 14 | -11/Scrapyard | Discovered exit to Materials (range 15) 84 | -11/Scrapyard | Entered Materials 84 | -10/Materials | Evolved 1 slot: Utility x1 306 | -10/Materials | Identified exit to Mines 306 | -10/Materials | Discovered exit to Mines (range 16) 313 | -10/Materials | Build established: Hacker-Mutant 321 | -10/Materials | Destroyed 8 combat bots 511 | -10/Materials | Identified exit to Materials 511 | -10/Materials | Discovered exit to Materials (range 16) 753 | -10/Materials | Discovered exit to Mines (range 11) 827 | -10/Materials | Discovered exit to Materials (range 16) 1170 | -10/Materials | Entered Mines 1247 | -10/Mines | Found a hidden stash of uninstalled traps 1345 | -10/Mines | Discovered exit to Materials (range 12) 1417 | -10/Mines | A weapon hastily lodged in a ceiling crevice suddenly fell to the ground 1515 | -10/Mines | Discovered exit to Materials (range 13) 1579 | -10/Mines | Identified exit to Subcaves 1579 | -10/Mines | Discovered exit to Subcaves (range 10) 2014 | -10/Mines | Entered Subcaves 2014 | -10/Subcaves | Accompanied by 2 allies 2015 | -10/Subcaves | Approached by a straggling Scientist 2019 | -10/Subcaves | Led the pair of lost Derelicts to an unsafe place 2094 | -10/Subcaves | Lost 3 allies 2126 | -10/Subcaves | Ambushed by angry Subdweller bent on revenge 2183 | -10/Subcaves | Shifting Twisted Machinery released Barrage Gun 2186 | -10/Subcaves | Shifting Twisted Machinery released Mak. Kinetic Plating 2435 | -10/Subcaves | Learned Materials trap positions 2438 | -10/Subcaves | Learned location of 1 exit from Materials 2647 | -10/Subcaves | Identified exit to Materials 2647 | -10/Subcaves | Discovered exit to Materials (range 15) 2738 | -10/Subcaves | Visited Clippyterm 2746 | -10/Subcaves | Learned location of Extension (-5) 2746 | -10/Subcaves | Learned Factory fabricator intel 3207 | -10/Subcaves | A swath of the cavern ceiling suddenly collapsed 3258 | -10/Subcaves | Ambushed by Subdwellers from Twisted Machinery 3261 | -10/Subcaves | Core integrity fell below 50% 3284 | -10/Subcaves | A Subdweller sparked back to life 3284 | -10/Subcaves | A Subdweller sparked back to life 3284 | -10/Subcaves | A Subdweller sparked back to life 3285 | -10/Subcaves | Ambushed by Subdweller buried in earth 3287 | -10/Subcaves | Core integrity fell below 20% 3348 | -10/Subcaves | Found Prototype Processor 3675 | -10/Subcaves | Discovered exit to Materials (range 12) 4310 | -10/Subcaves | Shifting Twisted Machinery released Sub. Shrapnel Launcher 4429 | -10/Subcaves | Shifting Twisted Machinery released Sub. Power Source 4792 | -10/Subcaves | A swath of the cavern ceiling suddenly collapsed 5125 | -10/Subcaves | Destroyed by Piercing Trap Last Messages --------------- 04878_ HV Slug penetrates Wall. 04884_ S-10 Pest destroyed. 04884_ HV Slug penetrates Wall. 04902_ Acquired 10 matter. 05095_ Searching scrap... 05095_ Found Sub. Monowheel. 05095_ Found Sub. Machine Gun. 05095_ Found 31 Matter. 05096_ Acquired 31 matter. 05120_ Searching scrap... 05120_ Found Riot Gun. 05120_ Found 55 Matter. 05121_ Acquired 55 matter. 05122_ Searching scrap... 05122_ Found Sub. Optics. 05122_ Found Mak. Light Armor Plating. 05122_ Found 59 Matter. 05123_ Acquired 38 matter. 05125_ Triggered Piercing Trap. 05125_ Spikes shoot up from the floor. Map ----- +----------------------------------------------------+ | ?????????????????????????????????????????????????? | | ?????????????????????????????????????????????????? | | ?????????????????????????????????????????????????? | | ?????????????????????????????????????????????????? | | ?????????????????????????????????????????????????? | | ?????????????????????????????????????????????????? | | ?????????????????????????????????????????????????? | | ?????????????????????????????????????????????????? | | ?????????????????????????????????????????????????? | | ?????????????????????????????????????????????????? | | ?????????????????????????????????????????????????? | | ?????????????????????????????????????????????????? | | ??????????????????????????????????????###???#####? | | ?????????????????????????????????????### ??####### | | ?????????????????????????????????????## ### ## | | ?????????????????????????????????????## ## # | | ?????????????????????????????????????## # | | ????????????????????????????????????? ### % | | ????????????????????????????????????????## | | ????????????????????????????????????????## | | ????????????????????????"####???????????##### | | ???????????#####???????######???????????##### # | | ???????????#####???????+ ##??????????????## ## | | ???????????##=#####?#####< ##??????????????### %## | | ???????????## ###########< ##??????????????## " # | | ???????????##"[" #####< %@ ##??????????????### " | | ???????????### # [!<##??????????????###"""" | | ???????????###" ## <###???????????????#""""# | | ???????##########< ##<< ####??????????#####""""## | | ???????##########< "########???####??? ####""?### | | ?????### ## " ### ####?#####?"""""## #### | | ?????## ####### #####""""#####" | | ?????### ## ##### ####" "####"" | | ??????##### #### ###"" #### | | ??????##### ## #### """" #### " | | ????####### #### "" #### """" # "# | | ???######## #### """" ####""" " | | ???### ### ### "##"""####" * " | | ???## ### ## ##"" #""" ## # # | | ???# ### ##""""""" ## ###### | | ??### ### ## ###""" "" ""#####" ##### | | ??### ### ### ###"#"#"" "######"%##?### | | ??## ## #### ##?###### ##### *!##?## | | ?### ## #######?####### #### ##### | | ?### ## #######?????######## ##### | | ?## ##??????????####" % # | | ?## #### ? ?? ##"""""" # | | ?## ###### """"""% ## | | ?### ####### """ ""%=## | | ?### ### # # " =%* ## = | +----------------------------------------------------+ Best States ------------- Heat Dissipation 25 Energy Generation 12 Energy Capacity 265 Matter Stores 300 Matter Capacity 300 Sight Range 16 Robot Scan Range 14 Terrain Scan Density 10 Resistance: KI 35 Resistance: TH 35 Resistance: EX 35 Resistance: EM 35 Resistance: I 35 Resistance: S 35 Resistance: P 35 Evasion (%) 50 Recoil Reduction 2 Offensive Hacking 20 Item Schematics ----------------- Sml. Storage Unit | -10/Materials | Hacked Med. Storage Unit | -10/Materials | Hacked Lrg. Storage Unit | -10/Materials | Hacked Hcp. Storage Unit | -10/Materials | Hacked Huge Storage Unit | -10/Materials | Hacked Cargo Storage Unit | -10/Materials | Hacked Robot Schematics ------------------ None Fabricated ------------ Nothing Repaired ---------- Nothing Studied --------- None Alien Tech Used ----------------- None Achievements -------------- None Challenges ------------ None Game ------ Seed CloakingRiotCalibrator Manual? 0 Play Time 00:21:17 Cumulative 305.8 hours Start 2026.01.23 @ 11:24:44 End 2026.01.23 @ 11:39:09 Sessions 1 Manual Loads 0 Difficulty Explorer Special Mode None Game No. 472 Rogue 0 Adventurer 0 Explorer 472 Win Type - Total 0 Types 0/0/0/0/0/0/0/0/0/0 Lore% 76 Gallery% 70 Achievement% 56 Wizard Run 0 Options --------- Layout 1 ASCII 0 Keyboard 0 Movement Mouse Keybinds 1 Fullscreen 1 Font 24/Smallcaps Map View 50x35 Zoom Use 0% Tactical HUD 1 Map Filters NONE Filters NONE Steam 1 RUN: ea09b851-59cf-420b-b039-bc27fe1e5e32